fUST/lending_fUST_20251115
["ID","MTS","AMOUNT","RATE_DAILY","PERIOD"]
[393984103,1763161841766,-492.0,0.00023647,2]
[393984104,1763161841775,-151.0,0.00023654,7]
[393984105,1763161841784,-1000.0,0.00023654,2]
[393984106,1763161841793,-442.81110855,0.000237,30]
[393984107,1763161841802,-151.0,0.00023716,7]
[393984108,1763161841811,-151.0,0.00023752,2]
[393984110,1763161841821,-269.244321,0.00023752,7]
[393984112,1763161841833,-500.0,0.00023784,2]
[393984114,1763161841842,-821.0,0.00023784,2]
[393984116,1763161841854,-673.0,0.00023784,2]
[393984117,1763161841866,-492.0,0.00023784,2]
[393984118,1763161841875,-360.0,0.0002379,2]
[393984119,1763161841885,-151.0,0.00023889,7]
[393984120,1763161841894,-500.0,0.00023921,2]
[393984121,1763161841905,-821.0,0.00023921,2]
[393984122,1763161841914,-673.0,0.00023921,2]
[393984123,1763161841923,-492.0,0.00023921,2]
[393984124,1763161841933,-275.04951286,0.00024058,2]
[393984125,1763161841942,-821.0,0.00024058,2]
[393984126,1763161841951,-673.0,0.00024058,2]
[393984127,1763161841960,-492.0,0.00024058,2]
[393984128,1763161841969,-152.369349,0.00024163,7]
[393984129,1763161841978,-2692.79863043,0.00024176,2]
[393984130,1763161841987,-821.0,0.00024195,2]
[393984131,1763161841997,-673.0,0.00024195,2]
[393984132,1763161842006,-492.0,0.00024195,2]
[393984133,1763161842015,-299.54342765,0.00024202,2]
[393984134,1763161842024,-151.0,0.000243,7]
[393984135,1763161842033,-821.0,0.00024332,2]
[393984136,1763161842043,-673.0,0.00024332,2]
[393984137,1763161842052,-492.0,0.00024332,2]
[393984138,1763161842060,-460.0,0.00024338,2]
[393984139,1763161842070,-821.0,0.00024469,2]
[393984140,1763161842082,-673.0,0.00024469,2]
[393984141,1763161842091,-492.0,0.00024469,2]
[393984142,1763161842100,-164.01,0.000245,7]
[393984143,1763161842109,-10000.0,0.00024558,2]
[393984144,1763161842118,-151.0,0.00024574,7]
[393984145,1763161842127,-587.47193,0.00024574,7]
[393984146,1763161842137,-587.47193,0.00024574,7]
[393984147,1763161842146,-587.47193,0.00024574,7]
[393984148,1763161842157,-587.47193,0.00024574,7]
[393984149,1763161842167,-151.0,0.00024574,7]
[393984150,1763161842177,-821.0,0.00024606,2]
[393984151,1763161842186,-673.0,0.00024606,2]
[393984152,1763161842195,-492.0,0.00024606,2]
[393984153,1763161842205,-151.0,0.00024658,7]
[393984154,1763161842214,-218.595348,0.00024658,7]
[393984155,1763161842223,-151.0,0.00024658,7]
[393984156,1763161842232,-151.0,0.00024658,7]
[393984157,1763161842241,-151.0,0.00024658,7]
[393984158,1763161842250,-152.497617,0.00024658,7]
[393984159,1763161842258,-151.0,0.00024658,7]
[393984160,1763161842267,-151.0,0.00024658,7]
[393984161,1763161842276,-184.673246,0.00024658,7]
[393984162,1763161842285,-151.0,0.00024658,7]
[393984163,1763161842294,-151.0,0.00024658,7]
[393984164,1763161842303,-151.0,0.00024658,7]
[393984165,1763161842312,-152.828512,0.00024658,7]
[393984166,1763161842322,-151.0,0.00024658,7]
[393984167,1763161842333,-151.0,0.00024658,7]
[393984168,1763161842342,-151.0,0.00024658,7]
[393984169,1763161842351,-151.767366,0.00024658,7]
[393984170,1763161842360,-151.0,0.00024658,7]
[393984171,1763161842370,-151.0,0.00024658,7]
[393984172,1763161842379,-171.478129,0.00024658,7]
[393984173,1763161842388,-152.71732,0.00024658,7]
[393984174,1763161842398,-151.0,0.00024658,7]
[393984175,1763161842408,-170.399718,0.00024658,7]
[393984176,1763161842417,-156.906094,0.00024658,7]
[393984177,1763161842426,-154.037957,0.00024658,7]
[393984178,1763161842435,-151.0,0.00024658,7]
[393984179,1763161842444,-266.601798,0.00024658,7]
[393984180,1763161842453,-164.322432,0.00024658,7]
[393984181,1763161842463,-151.0,0.00024658,7]
[393984182,1763161842472,-151.0,0.00024658,7]
[393984183,1763161842481,-151.0,0.00024658,7]
[393984184,1763161842491,-163.149535,0.00024658,7]
[393984185,1763161842500,-214.467643,0.00024658,7]
[393984186,1763161842510,-151.0,0.00024658,7]
[393984187,1763161842519,-152.861274,0.00024658,7]
[393984188,1763161842528,-151.0,0.00024658,7]
[393984189,1763161842537,-151.0,0.00024658,7]
[393984190,1763161842547,-151.0,0.00024658,7]
[393984191,1763161842556,-151.0,0.00024658,7]
[393984192,1763161842565,-151.0,0.00024658,7]
[393984193,1763161842575,-151.0,0.00024658,7]
[393984194,1763161842586,-152.463091,0.00024658,7]
[393984195,1763161842595,-151.0,0.00024658,7]
[393984196,1763161842605,-154.271945,0.00024658,7]
[393984197,1763161842615,-455.418,0.00024658,7]
[393984198,1763161842625,-455.418,0.00024658,7]
[393984199,1763161842634,-151.0,0.00024658,7]
[393984200,1763161842644,-151.0,0.00024658,7]
[393984201,1763161842653,-455.418,0.00024658,7]
[393984202,1763161842663,-455.418,0.00024658,7]
[393984203,1763161842672,-455.418,0.00024658,7]
[393984204,1763161842681,-455.418,0.00024658,7]
[393984205,1763161842691,-455.418,0.00024658,7]
[393984206,1763161842700,-455.418,0.00024658,7]
[393984207,1763161842709,-151.0,0.00024658,7]
[393984208,1763161842719,-169.319794,0.00024658,7]
[393984209,1763161842729,-196.781899,0.00024658,7]
[393984210,1763161842739,-196.781899,0.00024658,7]
[393984211,1763161842749,-196.781899,0.00024658,7]
[393984212,1763161842759,-196.781899,0.00024658,7]
[393984213,1763161842770,-196.781899,0.00024658,7]
[393984214,1763161842780,-196.781899,0.00024658,7]
[393984215,1763161842790,-151.0,0.00024658,7]
[393984217,1763161842800,-196.781899,0.00024658,7]
[393984218,1763161842809,-196.781899,0.00024658,7]
[393984221,1763161842819,-151.0,0.00024658,7]
[393984222,1763161842834,-151.0,0.00024658,7]
[393984224,1763161842844,-151.396938,0.00024658,7]
[393984225,1763161842856,-151.0,0.00024658,7]
[393984226,1763161842865,-151.0,0.00024658,7]
[393984227,1763161842875,-157.680718,0.00024658,7]
[393984228,1763161842884,-151.0,0.00024658,7]
[393984229,1763161842893,-151.0,0.00024658,7]
[393984230,1763161842902,-2593.934412,0.00024658,7]
[393984231,1763161842912,-2593.934412,0.00024658,7]
[393984232,1763161842922,-2593.934412,0.00024658,7]
[393984233,1763161842931,-2593.934412,0.00024658,7]
[393984235,1763161842942,-2593.934412,0.00024658,7]
[393984237,1763161842953,-2593.934412,0.00024658,7]
[393984239,1763161842964,-2593.934412,0.00024658,7]
[393984241,1763161842973,-2593.934412,0.00024658,7]
[393984243,1763161842983,-355.35191,0.00024658,7]
[393984245,1763161842992,-355.35191,0.00024658,7]
[393984247,1763161843001,-355.35191,0.00024658,7]
[393984249,1763161843011,-355.35191,0.00024658,7]
[393984252,1763161843020,-355.35191,0.00024658,7]
[393984255,1763161843030,-355.35191,0.00024658,7]
[393984258,1763161843039,-355.35191,0.00024658,7]
[393984260,1763161843048,-355.35191,0.00024658,7]
[393984263,1763161843058,-151.0,0.00024658,7]
[393984265,1763161843067,-151.0,0.00024658,7]
[393984266,1763161843079,-151.0,0.00024658,7]
[393984268,1763161843089,-151.0,0.00024658,7]
[393984271,1763161843099,-151.0,0.00024658,7]
[393984273,1763161843109,-151.0,0.00024658,7]
[393984275,1763161843118,-151.0,0.00024658,7]
[393984279,1763161843128,-151.0,0.00024658,7]
[393984282,1763161843138,-151.0,0.00024658,7]
[393984285,1763161843147,-151.0,0.00024658,7]
[393984287,1763161843156,-151.0,0.00024658,7]
[393984289,1763161843165,-151.0,0.00024658,7]
[393984291,1763161843175,-151.0,0.00024658,7]
[393984293,1763161843184,-151.0,0.00024658,7]
[393984295,1763161843193,-294.899948,0.00024658,7]
[393984296,1763161843203,-151.0,0.00024658,7]
[393984298,1763161843212,-151.0,0.00024658,7]
[393984300,1763161843221,-151.0,0.00024658,7]
[393984302,1763161843230,-151.0,0.00024658,7]
[393984304,1763161843239,-151.0,0.00024658,7]
[393984306,1763161843248,-151.0,0.00024658,7]
[393984308,1763161843257,-151.0,0.00024658,7]
[393984310,1763161843266,-151.0,0.00024658,7]
[393984312,1763161843275,-151.0,0.00024658,7]
[393984314,1763161843284,-151.0,0.00024658,7]
[393984316,1763161843294,-151.0,0.00024658,7]
[393984317,1763161843303,-226.675851,0.00024658,7]
[393984319,1763161843314,-151.0,0.00024658,7]
[393984321,1763161843323,-151.0,0.00024658,7]
[393984323,1763161843338,-151.0,0.00024658,7]
[393984325,1763161843347,-154.503828,0.00024658,7]
[393984327,1763161843357,-151.0,0.00024658,7]
[393984329,1763161843368,-151.0,0.00024658,7]
[393984335,1763161843473,-151.0,0.00024658,7]
[393984336,1763161843483,-531.375781,0.00024658,7]
[393984337,1763161843493,-531.375781,0.00024658,7]
[393984338,1763161843502,-151.0,0.00024658,7]
[393984339,1763161843513,-531.375781,0.00024658,7]
[393984340,1763161843522,-151.0,0.00024658,7]
[393984341,1763161843532,-531.375781,0.00024658,7]
[393984342,1763161843542,-531.375781,0.00024658,7]
[393984343,1763161843552,-531.375781,0.00024658,7]
[393984344,1763161843561,-531.375781,0.00024658,7]
[393984345,1763161843571,-151.0,0.00024658,7]
[393984346,1763161843584,-531.375781,0.00024658,7]
[393984347,1763161843594,-151.0,0.00024658,7]
[393984348,1763161843603,-161.715733,0.00024658,7]
[393984349,1763161843613,-153.742177,0.00024658,7]
[393984350,1763161843622,-151.0,0.00024658,7]
[393984351,1763161843631,-151.0,0.00024658,7]
[393984352,1763161843641,-151.0,0.00024658,7]
[393984353,1763161843650,-151.0,0.00024658,7]
[393984354,1763161843659,-220.335232,0.00024658,7]
[393984355,1763161843669,-151.0,0.00024658,7]
[393984356,1763161843678,-151.0,0.00024658,7]
[393984357,1763161843687,-151.0,0.00024658,7]
[393984358,1763161843697,-151.0,0.00024658,7]
[393984359,1763161843706,-151.0,0.00024658,7]
[393984360,1763161843715,-151.0,0.00024658,7]
[393984361,1763161843725,-158.306047,0.00024658,7]
[393984362,1763161843734,-151.0,0.00024658,7]
[393984363,1763161843743,-151.0,0.00024658,7]
[393984364,1763161843753,-235.15429,0.00024658,7]
[393984365,1763161843762,-151.0,0.00024658,7]
[393984366,1763161843771,-151.0,0.00024658,7]
[393984367,1763161843780,-151.0,0.00024658,7]
[393984368,1763161843789,-152.375786,0.00024658,7]
[393984369,1763161843799,-151.0,0.00024658,7]
[393984370,1763161843809,-151.0,0.00024658,7]
[393984371,1763161843819,-159.188504,0.00024658,7]
[393984372,1763161843830,-159.188504,0.00024658,7]
[393984373,1763161843840,-159.188504,0.00024658,7]
[393984374,1763161843849,-159.188504,0.00024658,7]
[393984375,1763161843860,-159.188504,0.00024658,7]
[393984376,1763161843871,-1790.182118,0.00024658,7]
[393984377,1763161843882,-159.188504,0.00024658,7]
[393984378,1763161843891,-1790.182118,0.00024658,7]
[393984380,1763161843901,-159.188504,0.00024658,7]
[393984381,1763161843910,-159.188504,0.00024658,7]
[393984382,1763161843920,-1790.182118,0.00024658,7]
[393984383,1763161843929,-1790.182118,0.00024658,7]
[393984384,1763161843938,-151.0,0.00024658,7]
[393984385,1763161843949,-159.188504,0.00024658,7]
[393984387,1763161843958,-151.0,0.00024658,7]
[393984388,1763161843968,-1790.182118,0.00024658,7]
[393984389,1763161843987,-1790.182118,0.00024658,7]
[393984390,1763161844005,-159.188504,0.00024658,7]
[393984391,1763161844014,-1790.182118,0.00024658,7]
[393984393,1763161844024,-159.188504,0.00024658,7]
[393984394,1763161844033,-1790.182118,0.00024658,7]
[393984395,1763161844042,-159.188504,0.00024658,7]
[393984396,1763161844051,-1790.182118,0.00024658,7]
[393984397,1763161844060,-159.188504,0.00024658,7]
[393984399,1763161844070,-1790.182118,0.00024658,7]
[393984400,1763161844082,-159.188504,0.00024658,7]
[393984401,1763161844091,-1790.182118,0.00024658,7]
[393984402,1763161844100,-159.188504,0.00024658,7]
[393984403,1763161844110,-1790.182118,0.00024658,7]
[393984405,1763161844119,-159.188504,0.00024658,7]
[393984406,1763161844129,-500.0,0.00024658,2]
[393984407,1763161844138,-500.0,0.00024658,2]
[393984408,1763161844147,-159.188504,0.00024658,7]
[393984409,1763161844157,-159.188504,0.00024658,7]
[393984410,1763161844166,-151.0,0.00024658,7]
[393984411,1763161844175,-1790.182118,0.00024658,7]
[393984412,1763161844185,-1790.182118,0.00024658,7]
[393984413,1763161844194,-159.188504,0.00024658,7]
[393984414,1763161844203,-500.0,0.00024673,2]
[393984415,1763161844212,-500.0,0.00024673,2]
[393984416,1763161844221,-500.0,0.00024673,2]
[393984417,1763161844230,-500.0,0.00024673,2]
[393984418,1763161844239,-500.0,0.00024673,2]
[393984419,1763161844249,-502.17060646,0.00024673,2]
[393984420,1763161844259,-500.0,0.00024673,2]
[393984421,1763161844267,-500.0,0.00024673,2]
[393984422,1763161844276,-151.0,0.00024711,7]
[393984423,1763161844286,-151.0,0.00024711,7]
[393984424,1763161844295,-151.0,0.00024711,7]
[393984425,1763161844304,-151.0,0.00024711,7]
[393984426,1763161844313,-151.0,0.00024711,7]
[393984427,1763161844322,-151.0,0.00024711,7]
[393984428,1763161844333,-151.0,0.00024711,7]
[393984429,1763161844343,-151.0,0.00024711,7]
[393984430,1763161844352,-151.0,0.00024711,7]
[393984432,1763161844361,-531.375781,0.00024711,7]
[393984433,1763161844370,-151.0,0.00024711,7]
[393984434,1763161844379,-531.375781,0.00024711,7]
[393984435,1763161844388,-587.47193,0.00024711,7]
[393984436,1763161844398,-531.375781,0.00024711,7]
[393984438,1763161844407,-587.47193,0.00024711,7]
[393984439,1763161844416,-531.375781,0.00024711,7]
[393984440,1763161844426,-151.0,0.00024711,7]
[393984441,1763161844435,-587.47193,0.00024711,7]
[393984443,1763161844444,-587.47193,0.00024711,7]
[393984444,1763161844453,-151.0,0.00024711,7]
[393984445,1763161844464,-151.0,0.00024732,7]
[393984446,1763161844474,-151.0,0.00024732,2]
[393984447,1763161844483,-455.418,0.00024732,7]
[393984448,1763161844492,-455.418,0.00024732,7]
[393984450,1763161844502,-455.418,0.00024732,7]
[393984451,1763161844511,-455.418,0.00024732,7]
[393984452,1763161844522,-151.0,0.00024732,7]
[393984453,1763161844531,-151.0,0.00024732,7]
[393984454,1763161844541,-151.0,0.00024732,7]
[393984455,1763161844550,-4408.0,0.00024732,2]
[393984456,1763161844559,-159.719671,0.00024732,7]
[393984457,1763161844568,-629.0,0.00024732,2]
[393984458,1763161844579,-2148.0,0.00024732,2]
[393984459,1763161844588,-1023.279,0.00024732,2]
[393984460,1763161844597,-413.0,0.00024732,2]
[393984461,1763161844607,-413.0,0.00024732,2]
[393984462,1763161844616,-507.0,0.00024737,2]
[393984463,1763161844626,-821.0,0.00024743,2]
[393984464,1763161844635,-673.0,0.00024743,2]
[393984465,1763161844644,-492.0,0.00024743,2]
[393984466,1763161844653,-300.0,0.00024773,2]
[393984467,1763161844662,-151.0,0.000248,7]
[393984468,1763161844672,-151.0,0.000248,7]
[393984469,1763161844681,-151.0,0.000248,7]
[393984470,1763161844691,-151.0,0.000248,7]
[393984471,1763161844700,-151.0,0.000248,7]
[393984472,1763161844709,-151.0,0.000248,7]
[393984473,1763161844718,-151.0,0.000248,7]
[393984474,1763161844727,-151.0,0.000248,7]
[393984475,1763161844737,-151.0,0.000248,7]
[393984476,1763161844746,-151.0,0.000248,7]
[393984477,1763161844755,-151.0,0.000248,7]
[393984478,1763161844764,-197.911652,0.000248,7]
[393984479,1763161844774,-196.781899,0.000248,7]
[393984480,1763161844788,-196.781899,0.000248,7]
[393984481,1763161844797,-196.781899,0.000248,7]
[393984482,1763161844806,-196.781899,0.000248,7]
[393984483,1763161844815,-151.0,0.000248,7]
[393984484,1763161844824,-2593.934412,0.000248,7]
[393984485,1763161844836,-2593.934412,0.000248,7]
[393984486,1763161844845,-2593.934412,0.000248,7]
[393984487,1763161844860,-2593.934412,0.000248,7]
[393984488,1763161844869,-355.35191,0.000248,7]
[393984489,1763161844881,-355.35191,0.000248,7]
[393984490,1763161844890,-355.35191,0.000248,7]
[393984491,1763161844900,-355.35191,0.000248,7]
[393984492,1763161844909,-151.0,0.000248,7]
[393984493,1763161844918,-151.0,0.000248,7]
[393984494,1763161844927,-151.0,0.000248,7]
[393984495,1763161844936,-250.831168,0.000248,7]
[393984496,1763161844946,-26151.962468,0.000248,2]
[393984497,1763161844955,-151.0,0.00024848,7]
[393984498,1763161844964,-500.0,0.00024873,2]
[393984499,1763161844974,-821.0,0.0002488,2]
[393984501,1763161844983,-673.0,0.0002488,2]
[393984502,1763161844992,-492.0,0.0002488,2]
[393984504,1763161845002,-560.0,0.00024886,2]
[393984505,1763161845011,-151.0,0.000249,7]
[393984506,1763161845107,-151.0,0.000249,7]
[393984507,1763161845117,-152.548768,0.000249,7]
[393984508,1763161845127,-273.868427,0.000249,7]
[393984509,1763161845136,-151.0,0.000249,7]
[393984510,1763161845145,-151.0,0.000249,7]
[393984511,1763161845155,-151.0,0.000249,7]
[393984512,1763161845165,-260.369975,0.000249,2]
[393984513,1763161845174,-151.0,0.000249,7]
[393984514,1763161845183,-151.0,0.000249,7]
[393984515,1763161845193,-151.0,0.000249,7]
[393984516,1763161845203,-151.0,0.000249,7]
[393984517,1763161845212,-151.0,0.000249,7]
[393984518,1763161845222,-151.0,0.000249,2]
[393984519,1763161845231,-455.418,0.000249,7]
[393984520,1763161845240,-455.418,0.000249,7]
[393984521,1763161845249,-455.418,0.000249,7]
[393984522,1763161845258,-455.418,0.000249,7]
[393984523,1763161845267,-196.781899,0.000249,7]
[393984524,1763161845276,-196.781899,0.000249,7]
[393984525,1763161845285,-196.781899,0.000249,7]
[393984526,1763161845294,-196.781899,0.000249,7]
[393984527,1763161845303,-2593.934412,0.000249,7]
[393984528,1763161845312,-2593.934412,0.000249,7]
[393984529,1763161845320,-2593.934412,0.000249,7]
[393984530,1763161845333,-2593.934412,0.000249,7]
[393984531,1763161845343,-355.35191,0.000249,7]
[393984532,1763161845352,-355.35191,0.000249,7]
[393984533,1763161845361,-355.35191,0.000249,7]
[393984534,1763161845370,-355.35191,0.000249,7]
[393984535,1763161845379,-151.0,0.000249,7]
[393984536,1763161845388,-151.0,0.000249,7]
[393984537,1763161845398,-151.0,0.000249,7]
[393984538,1763161845407,-312918.725304,0.000249,2]
[393984539,1763161845416,-151.0,0.000249,7]
[393984540,1763161845425,-151.0,0.000249,7]
[393984541,1763161845434,-151.0,0.000249,7]
[393984542,1763161845443,-151.0,0.000249,7]
[393984543,1763161845452,-151.0,0.000249,7]
[393984544,1763161845462,-151.0,0.000249,7]
[393984545,1763161845471,-151.0,0.000249,7]
[393984546,1763161845481,-151.0,0.000249,7]
[393984547,1763161845490,-151.0,0.000249,7]
[393984548,1763161845499,-531.375781,0.000249,7]
[393984549,1763161845508,-531.375781,0.000249,7]
[393984550,1763161845518,-587.47193,0.000249,7]
[393984551,1763161845527,-531.375781,0.000249,7]
[393984552,1763161845537,-587.47193,0.000249,7]
[393984553,1763161845546,-531.375781,0.000249,7]
[393984554,1763161845555,-277.276147,0.000249,7]
[393984555,1763161845564,-587.47193,0.000249,7]
[393984556,1763161845574,-587.47193,0.000249,7]
[393984557,1763161845587,-151.0,0.000249,7]
[393984558,1763161845596,-151.0,0.000249,7]
[393984559,1763161845606,-151.0,0.000249,7]
[393984560,1763161845615,-151.0,0.000249,7]
[393984561,1763161845625,-151.0,0.000249,7]
[393984562,1763161845634,-253.52842975,0.00024902,2]
[393984563,1763161845644,-310.0,0.00024932,2]
[393984564,1763161845654,-150.0,0.00024974,2]
[393984565,1763161845664,-821.0,0.00025017,2]
[393984566,1763161845673,-673.0,0.00025017,2]
[393984567,1763161845682,-492.0,0.00025017,2]
[393984568,1763161845691,-832.0,0.00025154,2]
[393984569,1763161845700,-693.0,0.00025154,2]
[393984570,1763161845710,-508.95391045,0.00025154,2]
[393984571,1763161845719,-1000.0,0.00025221,2]
[393984572,1763161845728,-194.28305474,0.00025221,2]
[393984573,1763161845737,-500.80962388,0.00025221,2]
[393984574,1763161845746,-500.0,0.00025221,2]
[393984575,1763161845755,-157.0,0.00025294,20]
[393984576,1763161845765,-692.03374751,0.00025302,2]
[393984577,1763161845774,-692.03374751,0.00025412,2]
[393984578,1763161845783,-1000.0,0.00025421,2]
[393984579,1763161845792,-660.0,0.00025433,2]
[393984580,1763161845801,-692.03374751,0.00025521,2]
[393984581,1763161845810,-692.03374751,0.0002563,2]
[393984582,1763161845819,-692.72578125,0.00025739,2]
[393984583,1763161845831,-1500.0,0.00025768,2]
[393984584,1763161845840,-1500.0,0.00025968,2]
[393984585,1763161845849,-760.0,0.00025981,2]
[393984586,1763161845862,-281.0,0.000262,2]
[393984587,1763161845871,-164.01,0.000263,7]
[393984588,1763161845880,-384.07908577,0.00026309,2]
[393984589,1763161845890,-1500.0,0.00026316,2]
[393984590,1763161845899,-273.28380445,0.00026516,2]
[393984591,1763161845908,-860.0,0.00026529,2]
[393984592,1763161845917,-1264.4521253,0.00026643,2]
[393984593,1763161845926,-2692.79863043,0.00026672,2]
[393984594,1763161845936,-734.575149,0.00026676,2]
[393984595,1763161845945,-287.0836631,0.00026902,2]
[393984596,1763161845955,-739.47734982,0.00027077,2]
[393984597,1763161845964,-357.151608,0.00027397,7]
[393984598,1763161845973,-357.151608,0.00027397,7]
[393984599,1763161845982,-357.151608,0.00027397,7]
[393984600,1763161845991,-357.151608,0.00027397,7]
[393984602,1763161846001,-357.151608,0.00027397,7]
[393984604,1763161846009,-357.151608,0.00027397,7]
[393984606,1763161846018,-357.151608,0.00027397,7]
[393984607,1763161846027,-357.151608,0.00027397,7]
[393984609,1763161846037,-357.151608,0.00027397,7]
[393984611,1763161846046,-357.151608,0.00027397,7]
[393984612,1763161846057,-357.151608,0.00027397,7]
[393984613,1763161846066,-357.151608,0.00027397,7]
[393984614,1763161846075,-357.151608,0.00027397,7]
[393984615,1763161846087,-357.151608,0.00027397,7]
[393984616,1763161846096,-357.151608,0.00027397,7]
[393984617,1763161846105,-357.151608,0.00027397,7]
[393984618,1763161846114,-260.369975,0.000274,7]
[393984619,1763161846124,-494.197863,0.00027458,12]
[393984621,1763161846133,-629.0,0.00027732,2]
[393984622,1763161846142,-2148.0,0.00027732,2]
[393984624,1763161846151,-987.0,0.00027732,2]
[393984626,1763161846160,-413.0,0.00027732,2]
[393984627,1763161846169,-413.0,0.00027732,2]
[393984629,1763161846178,-166.6978991,0.00027803,2]
[393984631,1763161846187,-150.0,0.00027974,2]
[393984633,1763161846196,-171.012836,0.00027975,7]
[393984634,1763161846205,-151.0,0.00027975,7]
[393984635,1763161846214,-12314.00544019,0.00027984,2]
[393984636,1763161846224,-151.0,0.00028084,7]
[393984638,1763161846233,-151.920125,0.00028084,7]
[393984639,1763161846242,-151.0,0.00028084,7]
[393984640,1763161846251,-357.151608,0.00028084,7]
[393984641,1763161846259,-357.151608,0.00028084,7]
[393984642,1763161846268,-357.151608,0.00028084,7]
[393984643,1763161846277,-357.151605,0.00028084,7]
[393984644,1763161846286,-196.781899,0.00028084,7]
[393984645,1763161846295,-196.781899,0.00028084,7]
[393984646,1763161846304,-196.781899,0.00028084,7]
[393984647,1763161846313,-196.781891,0.00028084,7]
[393984648,1763161846323,-2593.934412,0.00028084,7]
[393984649,1763161846335,-2593.934412,0.00028084,7]
[393984650,1763161846344,-2593.934412,0.00028084,7]
[393984651,1763161846353,-2593.934418,0.00028084,7]
[393984652,1763161846363,-355.35191,0.00028084,7]
[393984653,1763161846374,-355.35191,0.00028084,7]
[393984654,1763161846383,-355.35191,0.00028084,7]
[393984655,1763161846393,-355.351913,0.00028084,7]
[393984656,1763161846403,-151.0,0.00028084,7]
[393984657,1763161846413,-151.0,0.00028084,7]
[393984658,1763161846423,-151.0,0.00028084,7]
[393984659,1763161846432,-151.0,0.00028084,7]
[393984660,1763161846442,-177.261716,0.00028084,7]
[393984661,1763161846451,-151.0,0.00028084,7]
[393984662,1763161846460,-151.0,0.00028084,7]
[393984664,1763161846470,-151.0,0.00028084,7]
[393984666,1763161846479,-151.0,0.00028084,7]
[393984667,1763161846563,-151.0,0.00028084,7]
[393984668,1763161846586,-210.552424,0.00028084,7]
[393984669,1763161846596,-151.0,0.00028084,7]
[393984670,1763161846605,-531.375781,0.00028084,7]
[393984671,1763161846614,-531.375781,0.00028084,7]
[393984672,1763161846624,-587.47193,0.00028084,7]
[393984673,1763161846633,-531.375781,0.00028084,7]
[393984674,1763161846642,-587.47193,0.00028084,7]
[393984675,1763161846652,-531.375778,0.00028084,7]
[393984676,1763161846661,-587.47193,0.00028084,7]
[393984677,1763161846670,-587.471922,0.00028084,7]
[393984678,1763161846680,-191.29322,0.00028084,7]
[393984679,1763161846689,-5125.6569276,0.00028084,17]
[393984680,1763161846698,-152.41576418,0.00028105,2]
[393984681,1763161846708,-329.60578101,0.0002812,2]
[393984682,1763161846717,-260.369975,0.00028125,7]
[393984683,1763161846727,-160.0,0.00028241,2]
[393984684,1763161846736,-400.38245665,0.00028241,2]
[393984685,1763161846744,-329.60578101,0.00028289,9]
[393984686,1763161846753,-329.60578101,0.00028458,17]
[393984687,1763161846763,-164.01,0.000285,7]
[393984689,1763161846771,-329.60578101,0.00028627,25]
[393984690,1763161846781,-151.0,0.00028796,2]
[393984692,1763161846790,-455.418,0.00028796,7]
[393984693,1763161846799,-455.418,0.00028796,7]